[Event "Early-Titled-Tuesday-Blitz-May-14-2024"]
[Site "Chess.com"]
[Date "2024.05.14"]
[Round "4"]
[White "TitarovVasiliYouTube"]
[Black "AlmasRakhmatullaev"]
[Result "1/2-1/2"]
[WhiteElo "2630"]
[BlackElo "2875"]
[TimeControl "180+1"]
[EndTime "8:43:04 PDT"]
[Termination "Game drawn by repetition"]

1. Nf3 {[%clk 0:03:00.9]} 1... Nf6 {[%clk 0:02:58.5]} 2. g3 {[%clk 0:03:00.8]}
2... g6 {[%clk 0:02:59.4]} 3. Bg2 {[%clk 0:03:00.9]} 3... Bg7 {[%clk 0:03:00.3]}
4. O-O {[%clk 0:03:00.8]} 4... O-O {[%clk 0:03:01.2]} 5. d3 {[%clk 0:03:01.4]}
5... d6 {[%clk 0:03:02.1]} 6. Nbd2 {[%clk 0:03:01.7]} 6... Nbd7 {[%clk 0:03:03]}
7. e4 {[%clk 0:03:01.3]} 7... e5 {[%clk 0:03:02.8]} 8. c3 {[%clk 0:03:00.1]}
8... c6 {[%clk 0:03:02.9]} 9. a4 {[%clk 0:03:00.7]} 9... a5 {[%clk 0:03:03]} 10.
Qc2 {[%clk 0:03:01.3]} 10... Nh5 {[%clk 0:02:56.8]} 11. d4 {[%clk 0:02:54.4]}
11... Qe7 {[%clk 0:02:51.3]} 12. Re1 {[%clk 0:02:51.6]} 12... f5 {[%clk
0:02:35.4]} 13. exf5 {[%clk 0:02:30.1]} 13... gxf5 {[%clk 0:02:29.9]} 14. dxe5
{[%clk 0:02:15.7]} 14... dxe5 {[%clk 0:02:27.7]} 15. Nc4 {[%clk 0:01:53.3]}
15... e4 {[%clk 0:02:26.8]} 16. Nh4 {[%clk 0:01:46.8]} 16... Nc5 {[%clk
0:02:22.5]} 17. b3 {[%clk 0:01:27.2]} 17... Be6 {[%clk 0:02:14.7]} 18. Ba3
{[%clk 0:01:25.2]} 18... Rad8 {[%clk 0:01:49.7]} 19. Rad1 {[%clk 0:01:12.9]}
19... Nf6 {[%clk 0:01:36.3]} 20. Nxa5 {[%clk 0:00:51.2]} 20... Rxd1 {[%clk
0:01:07.3]} 21. Rxd1 {[%clk 0:00:49.2]} 21... Nd5 {[%clk 0:01:03.7]} 22. Nxb7
{[%clk 0:00:41.6]} 22... Qxb7 {[%clk 0:00:57.4]} 23. Bxc5 {[%clk 0:00:42.2]}
23... Rb8 {[%clk 0:00:52.4]} 24. c4 {[%clk 0:00:38.1]} 24... Nc3 {[%clk
0:00:51.6]} 25. Rd6 {[%clk 0:00:36.6]} 25... Qf7 {[%clk 0:00:30.9]} 26. a5
{[%clk 0:00:24.3]} 26... Be5 {[%clk 0:00:29.5]} 27. Rxc6 {[%clk 0:00:23.3]}
27... Rd8 {[%clk 0:00:29.8]} 28. h3 {[%clk 0:00:20.4]} 28... f4 {[%clk
0:00:25.8]} 29. Bxe4 {[%clk 0:00:16.3]} 29... fxg3 {[%clk 0:00:22.3]} 30. fxg3
{[%clk 0:00:15.4]} 30... Rd1+ {[%clk 0:00:21.7]} 31. Qxd1 {[%clk 0:00:15.8]}
31... Nxd1 {[%clk 0:00:21.7]} 32. Rxe6 {[%clk 0:00:16]} 32... Bxg3 {[%clk
0:00:17.9]} 33. Bd5 {[%clk 0:00:11.5]} 33... Bf2+ {[%clk 0:00:14.4]} 34. Kh1
{[%clk 0:00:05.4]} 34... Kh8 {[%clk 0:00:11.1]} 35. Re2 {[%clk 0:00:02]} 35...
Qf6 {[%clk 0:00:07.8]} 36. Bxf2 {[%clk 0:00:02]} 36... Nxf2+ {[%clk 0:00:07]}
37. Kg2 {[%clk 0:00:02]} 37... Nd3 {[%clk 0:00:06.1]} 38. Re8+ {[%clk
0:00:02.3]} 38... Kg7 {[%clk 0:00:06.3]} 39. Rg8+ {[%clk 0:00:02.9]} 39... Kh6
{[%clk 0:00:06.8]} 40. Nf3 {[%clk 0:00:01.6]} 40... Nf4+ {[%clk 0:00:05.5]} 41.
Kg3 {[%clk 0:00:02.2]} 41... Ne2+ {[%clk 0:00:04.9]} 42. Kf2 {[%clk 0:00:02.4]}
42... Nc1 {[%clk 0:00:05.6]} 43. Kg3 {[%clk 0:00:02.8]} 43... Nd3 {[%clk
0:00:05.9]} 44. Rg4 {[%clk 0:00:03.4]} 44... Ne5 {[%clk 0:00:04.6]} 45. Nxe5
{[%clk 0:00:03.6]} 45... Qxe5+ {[%clk 0:00:05.5]} 46. Kg2 {[%clk 0:00:03.8]}
46... Qe2+ {[%clk 0:00:05.6]} 47. Kg3 {[%clk 0:00:04]} 47... Qe3+ {[%clk
0:00:06.3]} 48. Kg2 {[%clk 0:00:04.5]} 48... Qxb3 {[%clk 0:00:06.9]} 49. a6
{[%clk 0:00:04]} 49... Qa2+ {[%clk 0:00:07]} 50. Kg3 {[%clk 0:00:04.7]} 50...
Qxa6 {[%clk 0:00:07.9]} 51. Kg2 {[%clk 0:00:04.6]} 51... Qd6 {[%clk 0:00:07.7]}
52. Re4 {[%clk 0:00:04.4]} 52... Kg5 {[%clk 0:00:07.4]} 53. Kf3 {[%clk
0:00:03.8]} 53... h5 {[%clk 0:00:07.2]} 54. h4+ {[%clk 0:00:03.7]} 54... Kf5
{[%clk 0:00:07.8]} 55. Ke3 {[%clk 0:00:03.8]} 55... Qa3+ {[%clk 0:00:07.2]} 56.
Ke2 {[%clk 0:00:04]} 56... Qg3 {[%clk 0:00:07]} 57. Kd2 {[%clk 0:00:03.4]} 57...
Qf2+ {[%clk 0:00:05.9]} 58. Kd3 {[%clk 0:00:03.7]} 58... Qc5 {[%clk 0:00:06.8]}
59. Kc3 {[%clk 0:00:03.9]} 59... Kf6 {[%clk 0:00:07.1]} 60. Kd3 {[%clk
0:00:04.4]} 60... Kg7 {[%clk 0:00:07.4]} 61. Re6 {[%clk 0:00:04.5]} 61... Kf8
{[%clk 0:00:07.3]} 62. Re4 {[%clk 0:00:04.7]} 62... Kg7 {[%clk 0:00:07.5]} 63.
Ke2 {[%clk 0:00:05.4]} 63... Kf6 {[%clk 0:00:07.8]} 64. Kd3 {[%clk 0:00:06.3]}
64... Kf5 {[%clk 0:00:08.4]} 65. Ke2 {[%clk 0:00:06.8]} 65... Qa3 {[%clk
0:00:09]} 66. Kd2 {[%clk 0:00:06.9]} 66... Qb2+ {[%clk 0:00:09.2]} 67. Kd3
{[%clk 0:00:07.4]} 67... Qc1 {[%clk 0:00:09.8]} 68. Kd4 {[%clk 0:00:08.3]} 68...
Qg1+ {[%clk 0:00:09.1]} 69. Kd3 {[%clk 0:00:08.3]} 69... Qg3+ {[%clk 0:00:09.1]}
70. Kd4 {[%clk 0:00:08.8]} 70... Qg7+ {[%clk 0:00:07.6]} 71. Kd3 {[%clk
0:00:09]} 71... Qg1 {[%clk 0:00:07.4]} 72. Be6+ {[%clk 0:00:09.1]} 72... Kf6
{[%clk 0:00:07.7]} 73. Bd5 {[%clk 0:00:10]} 73... Qf2 {[%clk 0:00:07.8]} 74.
Re6+ {[%clk 0:00:09.5]} 74... Kg7 {[%clk 0:00:08.4]} 75. Re4 {[%clk 0:00:10.4]}
75... Kg6 {[%clk 0:00:08.3]} 76. Re6+ {[%clk 0:00:10.6]} 76... Kf5 {[%clk
0:00:08.8]} 77. Re4 {[%clk 0:00:11.5]} 77... Qb6 {[%clk 0:00:07.1]} 78. Be6+
{[%clk 0:00:10]} 78... Kf6 {[%clk 0:00:06.5]} 79. Bd5 {[%clk 0:00:10.4]} 79...
Qb2 {[%clk 0:00:07.2]} 80. Re6+ {[%clk 0:00:10.3]} 80... Kf5 {[%clk 0:00:07.9]}
81. Re4 {[%clk 0:00:11.2]} 81... Kg6 {[%clk 0:00:08.1]} 82. Re6+ {[%clk
0:00:10.7]} 82... Kg7 {[%clk 0:00:08.7]} 83. Re4 {[%clk 0:00:11.6]} 83... Qc1
{[%clk 0:00:08.1]} 84. Re7+ {[%clk 0:00:11.4]} 84... Kf6 {[%clk 0:00:08.1]} 85.
Re4 {[%clk 0:00:12.3]} 85... Kf5 {[%clk 0:00:08.6]} 86. Be6+ {[%clk 0:00:12.2]}
86... Kf6 {[%clk 0:00:08.4]} 87. Bd5 {[%clk 0:00:13.1]} 87... Qb1+ {[%clk
0:00:08.1]} 88. Kd4 {[%clk 0:00:13.4]} 88... Qb6+ {[%clk 0:00:08.7]} 89. Kd3
{[%clk 0:00:13.7]} 89... Qb2 {[%clk 0:00:08.1]} 90. Re6+ {[%clk 0:00:13.4]}
90... Kf5 {[%clk 0:00:08.4]} 91. Re4 {[%clk 0:00:14.3]} 1/2-1/2

[Event "Early-Titled-Tuesday-Blitz-May-14-2024"]
[Site "Chess.com"]
[Date "2024.05.14"]
[Round "4"]
[White "xxysoul6"]
[Black "Mops_2004"]
[Result "0-1"]
[WhiteElo "2973"]
[BlackElo "2832"]
[TimeControl "180+1"]
[EndTime "8:43:37 PDT"]
[Termination "Mops_2004 won by resignation"]

1. Nf3 {[%clk 0:03:00.9]} 1... Nf6 {[%clk 0:02:59.6]} 2. b3 {[%clk 0:03:00.8]}
2... d5 {[%clk 0:02:59.3]} 3. Bb2 {[%clk 0:03:01.3]} 3... c6 {[%clk 0:02:59.6]}
4. e3 {[%clk 0:02:59.7]} 4... Bf5 {[%clk 0:02:59.3]} 5. c4 {[%clk 0:02:58.9]}
5... e6 {[%clk 0:02:59.3]} 6. Nc3 {[%clk 0:02:59.1]} 6... h6 {[%clk 0:02:59.2]}
7. Be2 {[%clk 0:02:57.7]} 7... Nbd7 {[%clk 0:02:58.5]} 8. O-O {[%clk 0:02:57.9]}
8... Bd6 {[%clk 0:02:58.5]} 9. h3 {[%clk 0:02:58]} 9... O-O {[%clk 0:02:58.1]}
10. d3 {[%clk 0:02:58.6]} 10... Qe7 {[%clk 0:02:55.1]} 11. Re1 {[%clk
0:02:57.8]} 11... Bh7 {[%clk 0:02:54.9]} 12. Rc1 {[%clk 0:02:57.6]} 12... a6
{[%clk 0:02:50.9]} 13. Bf1 {[%clk 0:02:57.6]} 13... e5 {[%clk 0:02:50.5]} 14.
Nh2 {[%clk 0:02:50]} 14... Rfd8 {[%clk 0:02:29.3]} 15. cxd5 {[%clk 0:02:33.7]}
15... cxd5 {[%clk 0:02:29.2]} 16. Ng4 {[%clk 0:02:34.1]} 16... b5 {[%clk
0:02:23.1]} 17. Nxf6+ {[%clk 0:02:28.3]} 17... Nxf6 {[%clk 0:02:22.8]} 18. g3
{[%clk 0:02:28.7]} 18... Bf5 {[%clk 0:02:02.4]} 19. Bg2 {[%clk 0:02:28.3]} 19...
Be6 {[%clk 0:02:02.4]} 20. Ne2 {[%clk 0:02:24]} 20... Rac8 {[%clk 0:01:36.5]}
21. Qd2 {[%clk 0:02:21.5]} 21... Bb4 {[%clk 0:01:32.8]} 22. Bc3 {[%clk
0:02:19.6]} 22... Rxc3 {[%clk 0:01:13.4]} 23. Rxc3 {[%clk 0:01:46]} 23... d4
{[%clk 0:01:13.5]} 24. exd4 {[%clk 0:01:45.2]} 24... exd4 {[%clk 0:01:14.4]} 25.
Nxd4 {[%clk 0:01:44.7]} 25... Rxd4 {[%clk 0:01:14.4]} 26. Qc2 {[%clk 0:01:44.3]}
26... Bxc3 {[%clk 0:01:11.4]} 27. Qxc3 {[%clk 0:01:45.2]} 27... Qd6 {[%clk
0:01:08.2]} 28. Rd1 {[%clk 0:01:42.7]} 28... Bf5 {[%clk 0:01:02.3]} 29. Bf1
{[%clk 0:01:41.8]} 29... h5 {[%clk 0:00:57.4]} 30. Re1 {[%clk 0:01:34.3]} 30...
Kh7 {[%clk 0:00:53.6]} 31. a3 {[%clk 0:01:26.1]} 31... b4 {[%clk 0:00:47.2]} 32.
axb4 {[%clk 0:01:21.9]} 32... Qxb4 {[%clk 0:00:48.1]} 33. Qxb4 {[%clk
0:01:18.1]} 33... Rxb4 {[%clk 0:00:47.9]} 34. Re5 {[%clk 0:01:18.5]} 34... Kg6
{[%clk 0:00:38.1]} 35. d4 {[%clk 0:01:14.6]} 35... Rxb3 {[%clk 0:00:30.1]} 36.
Bxa6 {[%clk 0:00:59.8]} 36... Rb1+ {[%clk 0:00:30]} 37. Kh2 {[%clk 0:00:48]}
37... Rd1 {[%clk 0:00:27.8]} 38. Bc4 {[%clk 0:00:43.2]} 38... Rxd4 {[%clk
0:00:26.9]} 39. Bxf7+ {[%clk 0:00:43]} 39... Kxf7 {[%clk 0:00:24.8]} 40. Rxf5
{[%clk 0:00:40.7]} 40... Kg6 {[%clk 0:00:23.6]} 41. Rf3 {[%clk 0:00:39.5]} 41...
Rd5 {[%clk 0:00:22.3]} 42. Kg2 {[%clk 0:00:38.5]} 42... Rf5 {[%clk 0:00:19.7]}
43. Re3 {[%clk 0:00:38.9]} 43... Kf7 {[%clk 0:00:18.6]} 44. Re2 {[%clk
0:00:38.1]} 44... Rd5 {[%clk 0:00:18.3]} 45. Re3 {[%clk 0:00:38.1]} 45... Rd6
{[%clk 0:00:18.7]} 46. Re5 {[%clk 0:00:38.2]} 46... Re6 {[%clk 0:00:18.8]} 47.
Rb5 {[%clk 0:00:38.1]} 47... Kg6 {[%clk 0:00:18.4]} 48. Rb2 {[%clk 0:00:37.4]}
48... Ne4 {[%clk 0:00:17.8]} 49. Re2 {[%clk 0:00:36.9]} 49... Kf5 {[%clk
0:00:18]} 50. Ra2 {[%clk 0:00:36.2]} 50... Rd6 {[%clk 0:00:16.4]} 51. Ra5+
{[%clk 0:00:35.5]} 51... Kg6 {[%clk 0:00:16.8]} 52. Re5 {[%clk 0:00:35.5]} 52...
Nf6 {[%clk 0:00:16.5]} 53. Re2 {[%clk 0:00:35.6]} 53... Rd5 {[%clk 0:00:15.3]}
54. Ra2 {[%clk 0:00:35.9]} 54... Kf5 {[%clk 0:00:15.5]} 55. Re2 {[%clk
0:00:34.9]} 55... g5 {[%clk 0:00:13.9]} 56. f3 {[%clk 0:00:34.4]} 56... h4
{[%clk 0:00:11.1]} 57. gxh4 {[%clk 0:00:32.5]} 57... gxh4 {[%clk 0:00:11.1]} 58.
Kf2 {[%clk 0:00:33.1]} 58... Nh5 {[%clk 0:00:09.9]} 59. Re8 {[%clk 0:00:23]}
59... Nf4 {[%clk 0:00:09.9]} 60. Rf8+ {[%clk 0:00:22.5]} 60... Kg5 {[%clk
0:00:09.1]} 61. Rg8+ {[%clk 0:00:17]} 61... Ng6 {[%clk 0:00:08.5]} 62. Ke3
{[%clk 0:00:11]} 62... Ra5 {[%clk 0:00:06.3]} 63. Rg7 {[%clk 0:00:09.7]} 63...
Ra3+ {[%clk 0:00:05.1]} 64. Ke4 {[%clk 0:00:10.1]} 64... Kf6 {[%clk 0:00:05]}
65. Rc7 {[%clk 0:00:09.6]} 65... Ra4+ {[%clk 0:00:04.8]} 66. Ke3 {[%clk
0:00:09.9]} 66... Nf4 {[%clk 0:00:04.6]} 67. Rc6+ {[%clk 0:00:09.5]} 67... Kg7
{[%clk 0:00:04.4]} 68. Rc7+ {[%clk 0:00:09.8]} 68... Kf6 {[%clk 0:00:04.1]} 69.
Rc6+ {[%clk 0:00:10.2]} 69... Kf5 {[%clk 0:00:04.1]} 70. Rc5+ {[%clk 0:00:10]}
70... Ke6 {[%clk 0:00:04.6]} 71. Rc6+ {[%clk 0:00:10.6]} 71... Ke5 {[%clk
0:00:04.6]} 72. Rc5+ {[%clk 0:00:10]} 72... Nd5+ {[%clk 0:00:04.6]} 73. Kd3
{[%clk 0:00:06.4]} 73... Ra3+ {[%clk 0:00:04.1]} 74. Ke2 {[%clk 0:00:06.5]}
74... Kd4 {[%clk 0:00:04.5]} 75. Rc6 {[%clk 0:00:05.8]} 75... Nf4+ {[%clk
0:00:04.8]} 76. Ke1 {[%clk 0:00:05.4]} 76... Ra1+ {[%clk 0:00:04]} 77. Kf2
{[%clk 0:00:04.8]} 77... Nxh3+ {[%clk 0:00:03.6]} 78. Kg2 {[%clk 0:00:05.3]}
78... Nf4+ {[%clk 0:00:04.2]} 79. Kh2 {[%clk 0:00:06.2]} 79... Ra2+ {[%clk
0:00:04.6]} 80. Kg1 {[%clk 0:00:06.4]} 80... Ke3 {[%clk 0:00:04.7]} 81. Rc3+
{[%clk 0:00:06.1]} 81... Ke2 {[%clk 0:00:04.6]} 82. Kh2 {[%clk 0:00:06.4]} 82...
Kf2 {[%clk 0:00:04.7]} 83. Rc4 {[%clk 0:00:05.9]} 83... Kxf3+ {[%clk 0:00:04.4]}
84. Kg1 {[%clk 0:00:06.5]} 84... Kg3 {[%clk 0:00:04.5]} 85. Rc3+ {[%clk
0:00:06.5]} 85... Kg4 {[%clk 0:00:05]} 86. Kh1 {[%clk 0:00:05.4]} 86... Rd2
{[%clk 0:00:04.6]} 87. Rc1 {[%clk 0:00:05.4]} 87... Ne2 {[%clk 0:00:04.4]} 88.
Re1 {[%clk 0:00:05]} 88... Kh3 {[%clk 0:00:04]} 89. Rg1 {[%clk 0:00:01.2]} 89...
Ng3+ {[%clk 0:00:03.5]} 0-1

[Event "Early-Titled-Tuesday-Blitz-May-14-2024"]
[Site "Chess.com"]
[Date "2024.05.14"]
[Round "4"]
[White "jinbojinbo"]
[Black "Blitz_Lover1"]
[Result "1-0"]
[WhiteElo "2663"]
[BlackElo "2311"]
[TimeControl "180+1"]
[EndTime "8:43:48 PDT"]
[Termination "jinbojinbo won by checkmate"]

1. c4 {[%clk 0:03:00.9]} 1... e5 {[%clk 0:02:59.2]} 2. Nc3 {[%clk 0:03:00.7]}
2... Nf6 {[%clk 0:02:56.1]} 3. Nf3 {[%clk 0:03:00.3]} 3... Nc6 {[%clk
0:02:55.3]} 4. g3 {[%clk 0:03:00.3]} 4... d5 {[%clk 0:02:55.1]} 5. cxd5 {[%clk
0:03:01.2]} 5... Nxd5 {[%clk 0:02:55.7]} 6. Bg2 {[%clk 0:03:01.6]} 6... Nb6
{[%clk 0:02:55.4]} 7. O-O {[%clk 0:03:01.8]} 7... Be7 {[%clk 0:02:53]} 8. a3
{[%clk 0:03:01]} 8... Be6 {[%clk 0:02:47.2]} 9. d3 {[%clk 0:02:53.7]} 9... O-O
{[%clk 0:02:46.4]} 10. Be3 {[%clk 0:02:52.1]} 10... Re8 {[%clk 0:02:38.3]} 11.
Rc1 {[%clk 0:02:51.8]} 11... Bf8 {[%clk 0:02:26.7]} 12. Ne4 {[%clk 0:02:49.3]}
12... f6 {[%clk 0:02:23.3]} 13. Nc5 {[%clk 0:02:47.7]} 13... Bxc5 {[%clk
0:02:22.7]} 14. Rxc5 {[%clk 0:02:42.2]} 14... Nd5 {[%clk 0:02:20.6]} 15. Bd2
{[%clk 0:02:40.5]} 15... Kh8 {[%clk 0:02:18.7]} 16. b4 {[%clk 0:02:38.9]} 16...
Nd4 {[%clk 0:02:11.3]} 17. Nxd4 {[%clk 0:02:28]} 17... exd4 {[%clk 0:02:12.2]}
18. b5 {[%clk 0:02:10.5]} 18... Qd6 {[%clk 0:02:06.1]} 19. Qc1 {[%clk
0:01:45.1]} 19... a6 {[%clk 0:01:54.2]} 20. a4 {[%clk 0:01:32.5]} 20... axb5
{[%clk 0:01:48.8]} 21. axb5 {[%clk 0:01:32.4]} 21... Ra2 {[%clk 0:01:47.2]} 22.
Rc2 {[%clk 0:01:28.4]} 22... Rxc2 {[%clk 0:01:32.5]} 23. Qxc2 {[%clk 0:01:29.3]}
23... Bg8 {[%clk 0:01:32.2]} 24. Re1 {[%clk 0:01:27.6]} 24... c6 {[%clk
0:01:29.7]} 25. bxc6 {[%clk 0:01:26.7]} 25... bxc6 {[%clk 0:01:30.6]} 26. Bf3
{[%clk 0:01:21.8]} 26... c5 {[%clk 0:01:22.1]} 27. Rc1 {[%clk 0:01:21.3]} 27...
Rc8 {[%clk 0:00:34.9]} 28. h4 {[%clk 0:01:19.9]} 28... Ne7 {[%clk 0:00:26.4]}
29. Bf4 {[%clk 0:01:14.4]} 29... Qd8 {[%clk 0:00:21.3]} 30. h5 {[%clk
0:00:50.4]} 30... c4 {[%clk 0:00:20]} 31. dxc4 {[%clk 0:00:45.5]} 31... Rxc4
{[%clk 0:00:20.9]} 32. Qd1 {[%clk 0:00:45.6]} 32... Rxc1 {[%clk 0:00:21.4]} 33.
Bxc1 {[%clk 0:00:43.9]} 33... h6 {[%clk 0:00:20.9]} 34. Bb2 {[%clk 0:00:41]}
34... Nf5 {[%clk 0:00:20.8]} 35. Be4 {[%clk 0:00:37.6]} 35... Be6 {[%clk
0:00:19.5]} 36. Qd3 {[%clk 0:00:34.9]} 36... Qd7 {[%clk 0:00:19.4]} 37. Kh2
{[%clk 0:00:29]} 37... Kg8 {[%clk 0:00:16.6]} 38. Kg2 {[%clk 0:00:24.8]} 38...
Kh8 {[%clk 0:00:15.7]} 39. Kg1 {[%clk 0:00:23.9]} 39... Kg8 {[%clk 0:00:15.8]}
40. g4 {[%clk 0:00:24]} 40... Nd6 {[%clk 0:00:13.3]} 41. Bg6 {[%clk 0:00:17.6]}
41... Bxg4 {[%clk 0:00:11.7]} 42. Qxd4 {[%clk 0:00:17.8]} 42... Bf5 {[%clk
0:00:11.2]} 43. Qd5+ {[%clk 0:00:14.4]} 43... Be6 {[%clk 0:00:10.8]} 44. Qa8+
{[%clk 0:00:13.5]} 44... Nc8 {[%clk 0:00:10.6]} 45. Qa1 {[%clk 0:00:12.1]} 45...
Bf7 {[%clk 0:00:10.5]} 46. Qb1 {[%clk 0:00:09.9]} 46... Ne7 {[%clk 0:00:07.7]}
47. Bd3 {[%clk 0:00:05.2]} 47... Bxh5 {[%clk 0:00:06.7]} 48. f3 {[%clk
0:00:05.6]} 48... Bf7 {[%clk 0:00:06.5]} 49. Qc2 {[%clk 0:00:05.7]} 49... Qc8
{[%clk 0:00:04.9]} 50. Qd2 {[%clk 0:00:05.1]} 50... Qe8 {[%clk 0:00:02.8]} 51.
Kf1 {[%clk 0:00:05.3]} 51... Bg6 {[%clk 0:00:03.3]} 52. Bc4+ {[%clk 0:00:05.4]}
52... Kh7 {[%clk 0:00:03.7]} 53. Qe3 {[%clk 0:00:05.2]} 53... Nf5 {[%clk
0:00:04.1]} 54. Qxe8 {[%clk 0:00:04.4]} 54... Bxe8 {[%clk 0:00:05]} 55. Bd3
{[%clk 0:00:03.2]} 55... Bg6 {[%clk 0:00:05.7]} 56. e4 {[%clk 0:00:03.8]} 56...
Nh4 {[%clk 0:00:04.4]} 57. Kf2 {[%clk 0:00:03.6]} 57... h5 {[%clk 0:00:03.9]}
58. Kg3 {[%clk 0:00:03.4]} 58... f5 {[%clk 0:00:03.3]} 59. Kxh4 {[%clk
0:00:03.1]} 59... fxe4 {[%clk 0:00:04]} 60. fxe4 {[%clk 0:00:04]} 60... Kh6
{[%clk 0:00:03.1]} 61. Bc1+ {[%clk 0:00:03.9]} 61... Kh7 {[%clk 0:00:03]} 62.
Kg5 {[%clk 0:00:04.6]} 62... Bf7 {[%clk 0:00:02.5]} 63. e5+ {[%clk 0:00:04.3]}
63... Kg8 {[%clk 0:00:01.1]} 64. Bb5 {[%clk 0:00:04.3]} 64... Bd5 {[%clk
0:00:01.7]} 65. Kxh5 {[%clk 0:00:03.5]} 65... Kf7 {[%clk 0:00:02.6]} 66. Kg5
{[%clk 0:00:03.9]} 66... Ke6 {[%clk 0:00:03]} 67. Bb2 {[%clk 0:00:04.2]} 67...
Bb7 {[%clk 0:00:03.1]} 68. Be2 {[%clk 0:00:04.7]} 68... Bd5 {[%clk 0:00:03.2]}
69. Bg4+ {[%clk 0:00:05.4]} 69... Ke7 {[%clk 0:00:03.9]} 70. Kg6 {[%clk
0:00:05.8]} 70... Bf7+ {[%clk 0:00:02.9]} 71. Kxg7 {[%clk 0:00:06]} 71... Bd5
{[%clk 0:00:03.8]} 72. Kg6 {[%clk 0:00:06]} 72... Bf7+ {[%clk 0:00:03.6]} 73.
Kg5 {[%clk 0:00:06.1]} 73... Bd5 {[%clk 0:00:04.3]} 74. Kf4 {[%clk 0:00:07]}
74... Bf7 {[%clk 0:00:04.6]} 75. Ba3+ {[%clk 0:00:07.7]} 75... Ke8 {[%clk
0:00:04.4]} 76. e6 {[%clk 0:00:08.2]} 76... Bxe6 {[%clk 0:00:04.5]} 77. Bxe6
{[%clk 0:00:09.1]} 77... Kd8 {[%clk 0:00:05.3]} 78. Ke5 {[%clk 0:00:09.5]} 78...
Kc7 {[%clk 0:00:06.2]} 79. Bf7 {[%clk 0:00:09.3]} 79... Kd7 {[%clk 0:00:06.3]}
80. Bd5 {[%clk 0:00:09.4]} 80... Kc7 {[%clk 0:00:06.5]} 81. Bd6+ {[%clk
0:00:09.4]} 81... Kb6 {[%clk 0:00:06.6]} 82. Kd4 {[%clk 0:00:09.6]} 82... Kb5
{[%clk 0:00:07.1]} 83. Bc5 {[%clk 0:00:09.6]} 83... Ka5 {[%clk 0:00:03.5]} 84.
Bc6 {[%clk 0:00:09.1]} 84... Ka6 {[%clk 0:00:02.2]} 85. Kc4 {[%clk 0:00:09]}
85... Ka5 {[%clk 0:00:02.5]} 86. Bd7 {[%clk 0:00:08.3]} 86... Ka6 {[%clk
0:00:03.4]} 87. Bb5+ {[%clk 0:00:08.3]} 87... Ka5 {[%clk 0:00:03.5]} 88. Bb4+
{[%clk 0:00:07.7]} 88... Kb6 {[%clk 0:00:04.2]} 89. Bc3 {[%clk 0:00:08]} 89...
Kc7 {[%clk 0:00:04.3]} 90. Kc5 {[%clk 0:00:08.3]} 90... Kb7 {[%clk 0:00:05.2]}
91. Ba5 {[%clk 0:00:08]} 91... Ka7 {[%clk 0:00:05.4]} 92. Kc6 {[%clk 0:00:08.2]}
92... Kb8 {[%clk 0:00:05.4]} 93. Bc7+ {[%clk 0:00:07.6]} 93... Ka7 {[%clk
0:00:05.5]} 94. Bc4 {[%clk 0:00:07.6]} 94... Ka8 {[%clk 0:00:05.3]} 95. Bb6
{[%clk 0:00:05.4]} 95... Kb8 {[%clk 0:00:05.6]} 96. Ba5 {[%clk 0:00:03.4]} 96...
Kc8 {[%clk 0:00:05.3]} 97. Ba6+ {[%clk 0:00:03.1]} 97... Kb8 {[%clk 0:00:05.8]}
98. Kb6 {[%clk 0:00:02.6]} 98... Ka8 {[%clk 0:00:06.4]} 99. Bb4 {[%clk 0:00:03]}
99... Kb8 {[%clk 0:00:07]} 100. Bd6+ {[%clk 0:00:03.6]} 100... Ka8 {[%clk
0:00:07.3]} 101. Bb7# {[%clk 0:00:04.5]} 1-0

[Event "Early-Titled-Tuesday-Blitz-May-14-2024"]
[Site "Chess.com"]
[Date "2024.05.14"]
[Round "5"]
[White "Felix-Rose"]
[Black "Tigranpatagonian"]
[Result "1-0"]
[WhiteElo "2257"]
[BlackElo "2373"]
[TimeControl "180+1"]
[EndTime "8:52:44 PDT"]
[Termination "Felix-Rose won by resignation"]

1. e4 {[%clk 0:03:00.9]} 1... e6 {[%clk 0:02:55.6]} 2. d4 {[%clk 0:03:00.2]}
2... d5 {[%clk 0:02:55.5]} 3. Nc3 {[%clk 0:02:58.7]} 3... Bb4 {[%clk 0:02:50.8]}
4. e5 {[%clk 0:02:56.4]} 4... c5 {[%clk 0:02:47.8]} 5. a3 {[%clk 0:02:56]} 5...
Bxc3+ {[%clk 0:02:47.4]} 6. bxc3 {[%clk 0:02:56.9]} 6... Qc7 {[%clk 0:02:47.5]}
7. Qg4 {[%clk 0:02:52.6]} 7... f5 {[%clk 0:02:46.5]} 8. Qg3 {[%clk 0:02:51.1]}
8... Nc6 {[%clk 0:02:46]} 9. Ne2 {[%clk 0:02:30.1]} 9... cxd4 {[%clk 0:02:44.2]}
10. cxd4 {[%clk 0:02:29.5]} 10... Nge7 {[%clk 0:02:44]} 11. c3 {[%clk
0:02:27.5]} 11... O-O {[%clk 0:02:43.3]} 12. h4 {[%clk 0:02:23.9]} 12... b6
{[%clk 0:02:37.5]} 13. h5 {[%clk 0:02:23.4]} 13... Ba6 {[%clk 0:02:34]} 14. Nf4
{[%clk 0:02:21.4]} 14... Bxf1 {[%clk 0:02:28.8]} 15. Nxe6 {[%clk 0:02:16.7]} 1-0

[Event "Early-Titled-Tuesday-Blitz-May-14-2024"]
[Site "Chess.com"]
[Date "2024.05.14"]
[Round "5"]
[White "Denisenko_Denis"]
[Black "RojonR"]
[Result "0-1"]
[WhiteElo "2439"]
[BlackElo "2610"]
[TimeControl "180+1"]
[EndTime "8:52:49 PDT"]
[Termination "RojonR won by resignation"]

1. e4 {[%clk 0:02:48.1]} 1... c5 {[%clk 0:02:59.8]} 2. Nf3 {[%clk 0:02:44.5]}
2... Nc6 {[%clk 0:03:00.2]} 3. d4 {[%clk 0:02:44.3]} 3... cxd4 {[%clk
0:03:01.1]} 4. Nxd4 {[%clk 0:02:45.2]} 4... Qc7 {[%clk 0:03:00.1]} 5. Nc3 {[%clk
0:02:44.6]} 5... e6 {[%clk 0:02:59.5]} 6. Be2 {[%clk 0:02:40.3]} 6... a6 {[%clk
0:03:00]} 7. O-O {[%clk 0:02:38.9]} 7... Nf6 {[%clk 0:03:00.6]} 8. Be3 {[%clk
0:02:38.1]} 8... Bb4 {[%clk 0:03:01.2]} 9. Na4 {[%clk 0:02:35.2]} 9... Be7
{[%clk 0:03:01]} 10. Nxc6 {[%clk 0:02:30.8]} 10... bxc6 {[%clk 0:03:01.9]} 11.
Nb6 {[%clk 0:02:29.9]} 11... Rb8 {[%clk 0:03:02.6]} 12. Nxc8 {[%clk 0:02:29.6]}
12... Qxc8 {[%clk 0:03:03.5]} 13. e5 {[%clk 0:02:27.7]} 13... Nd5 {[%clk
0:03:04]} 14. Bd4 {[%clk 0:02:27.5]} 14... c5 {[%clk 0:03:03.9]} 15. c4 {[%clk
0:02:25.6]} 15... cxd4 {[%clk 0:03:04.4]} 16. cxd5 {[%clk 0:02:25.4]} 16... Qc5
{[%clk 0:03:05.1]} 17. d6 {[%clk 0:02:14.4]} 17... Bd8 {[%clk 0:03:04.9]} 18. f4
{[%clk 0:02:13.7]} 18... d3+ {[%clk 0:02:57.6]} 19. Kh1 {[%clk 0:02:09.5]} 19...
dxe2 {[%clk 0:02:57.8]} 20. Qxe2 {[%clk 0:02:09.4]} 20... O-O {[%clk 0:02:57.4]}
21. Qxa6 {[%clk 0:02:08]} 21... Rxb2 {[%clk 0:02:55.7]} 22. Rf3 {[%clk
0:02:06.9]} 22... Qc2 {[%clk 0:02:48.2]} 23. Rg3 {[%clk 0:02:05.5]} 23... Rb1+
{[%clk 0:02:46.6]} 0-1